Cogmind - Beta 12 @@@ ROGUE MODE // 2023.12.08 @ 00:34:03 Player: monistgf Result: Self-destructed Performance ------------- Evolutions (7) 3500 Regions Visited (14) 2800 Robots Destroyed (192) 960 Value Destroyed (8301) 8301 Prototype IDs (18) 360 Alien Tech Used (0) 0 Bonus (2394) 2394 TOTAL SCORE: 18315 Bonus ------- High Alert Combat Kills 691 Follower Combat Kills 565 Met Warlord at Base 500 MAIN.C Attacked Warlord 500 Warlord Defense Kills 658 Friendly Fire -520 Cogmind --------- Core Integrity 995/1300 Matter 210/300 Energy 184/350 System Corruption 5% Temperature Cool (0) Movement Core (1050) Ox20 Location -3/Research Parts ------- > --- POWER (1) -------- Quantum Reactor > --- PROPULSION (6) --- (None) > --- UTILITY (10) ----- Advanced Coolant Injector High-capacity Storage Unit Enhanced Optical Array Improved Signal Interpreter Core Analyzer Makeshift Hacking Suite > --- WEAPON (4) ------- (None) > --- INVENTORY (20) --- Advanced Heat Sink High-capacity Storage Unit Matter Compressor (250) Makeshift ECM Suite Long-range Tractor Beam Quantum Rifle HERF Cannon Mass Driver RU-N14's Throwing Claymores v3 RU-N14's Throwing Claymores v3 RU-N14's Throwing Claymores v3 Chainsword Peak State ------------ > --- POWER ------------ Reinforced Fission Core > --- PROPULSION ------- Flexi-carbon Leg Flexi-carbon Leg Armored Leg Armored Leg Myomer Leg Biometal Leg > --- UTILITY ---------- Advanced Heat Sink Advanced Coolant Injector High-capacity Storage Unit Enhanced Optical Array Long-range Sensor Array Improved Signal Interpreter Core Analyzer Layered Light Armor Plating Makeshift Hacking Suite > --- WEAPON ----------- HERF Cannon KE Penetrator Railgun Mass Driver > --- INVENTORY -------- Quantum Reactor Improved Carbon-fiber Leg Flexi-carbon Leg High-capacity Storage Unit Matter Compressor Makeshift ECM Suite Improved Dynamic Insulation System Long-range Tractor Beam Quantum Rifle Vortex Rail Vortex Rail HERF Cannon KE Penetrator Mass Driver Mass Driver Heavy Rocket Launcher RU-N14's Throwing Claymores v3 RU-N14's Throwing Claymores v3 RU-N14's Throwing Claymores v3 Chainsword [Rating: 119] Favorites ----------- Power Reinforced Fission Core Engine Improved Ion Engine Power Core Reinforced Fission Core Reactor Quantum Reactor Propulsion Flexi-carbon Leg Treads Improved Treads Leg Flexi-carbon Leg Wheel Wheel Utility Advanced Targeting Computer Device Long-range Sensor Array Storage High-capacity Storage Unit Processor Advanced Targeting Computer Hackware Makeshift Hacking Suite Protection Layered Light Armor Plating Weapon Mass Driver Energy Gun Vortex Rail Energy Cannon HERF Cannon Ballistic Gun KE Penetrator Ballistic Cannon Mass Driver Launcher Heavy Rocket Launcher Impact Weapon Heavy Mace Slashing Weapon Chainsword Build | -11 -10 -9 -8 -7 -6 -5 -5 -5 -4 -4 -4 -4 -3 -3 ------- Run | Jun Mat Mat Mat Fac Fac Fac Was Fac Fac Upp Upp War Pro Res Slots Evolved 14 | . . 2 2 2 2 2 . . 2 . . . . 2 Power . | . . . . . . . . . . . . . . . Propulsion 4 | . . . 1 1 . 1 . . 1 . . . . . Utility 8 | . . 2 . 1 2 1 . . 1 . . . . 1 Weapon 2 | . . . 1 . . . . . . . . . . 1 Parts Attached 226 | . 8 12 20 36 50 2 10 24 15 7 2 9 15 16 Power 17 | . . 4 . 3 5 . 2 1 . . . 1 . 1 Engine 10 | . . 4 . 3 3 . . . . . . . . . Core 5 | . . . . . 2 . 1 1 . . . 1 . . Reactor 2 | . . . . . . . 1 . . . . . . 1 Propulsion 51 | . 3 2 6 11 11 1 2 5 2 2 . 3 1 2 Treads 4 | . . . 2 2 . . . . . . . . . . Leg 40 | . 3 . . 8 11 1 2 5 2 2 . 3 1 2 Wheel 7 | . . 2 4 1 . . . . . . . . . . Hover . | . . . . . . . . . . . . . . . Flight . | . . . . . . . . . . . . . . . Utility 72 | . 2 3 4 12 16 1 3 7 5 5 . 3 9 2 Device 43 | . 1 . . 7 9 1 3 3 5 4 . 3 5 2 Storage 3 | . 1 . . 1 . . . . . . . . 1 . Processor 7 | . . . . 1 3 . . 2 . . . . 1 . Hackware 1 | . . . . . . . . . . . . . 1 . Protection 18 | . . 3 4 3 4 . . 2 . 1 . . 1 . Artifact . | . . . . . . . . . . . . . . . Weapon 86 | . 3 3 10 10 18 . 3 11 8 . 2 2 5 11 Energy Gun 5 | . . . . . . . . . . . . 1 2 2 Energy Cannon 2 | . . . . . . . . . . . . . . 2 Ballistic Gun 40 | . 3 3 7 4 8 . 1 6 4 . . 1 2 1 Ballistic Cannon 22 | . . . 1 4 5 . 2 3 2 . 1 . 1 3 Launcher 6 | . . . 2 . 2 . . . . . 1 . . 1 Special Weapon . | . . . . . . . . . . . . . . . Impact Weapon 3 | . . . . 2 1 . . . . . . . . . Slashing Weapon 8 | . . . . . 2 . . 2 2 . . . . 2 Piercing Weapon . | . . . . . . . . . . . . . . . Special Melee Weapon . | . . . . . . . . . . . . . . . Unidentified Prototypes 4 | . . . . 1 1 . . . . . . 2 . . Parts Lost 43 | . . 1 1 3 3 . 3 1 . 2 . . 7 22 Power 2 | . . 1 . . . . . . . . . . . 1 Propulsion 12 | . . . 1 . 1 . 1 . . . . . 1 8 Utility 15 | . . . . 1 . . 1 1 . 2 . . 5 5 Weapon 14 | . . . . 2 2 . 1 . . . . . 1 8 Highest Loss Streak 11 | . . 1 1 1 1 . 3 1 . 2 . . 3 11 To Critical Strikes 1 | . . . . . . . 1 . . . . . . . Average Slot Usage (%) 98 | . 96 99 99 99 98 100 99 99 100 99 100 100 96 87 Engine 4 | . 14 10 9 6 5 . . . . . . . . . Core 2 | . . . . . . 5 5 5 5 5 5 5 5 3 Leg 25 | . 27 12 . 27 25 29 28 29 31 31 31 31 30 22 Wheel 1 | . . 9 17 1 . . . . . . . . . . Device 10 | . 11 11 9 7 7 11 10 7 15 15 15 15 14 14 Storage 6 | . 14 11 9 7 6 5 5 5 5 5 5 5 5 4 Processor 16 | . . . . 6 23 23 23 26 21 21 21 21 14 14 Protection 8 | . . 22 18 15 6 5 5 4 5 4 5 5 7 2 Ballistic Gun 12 | . 26 22 25 12 10 11 6 7 10 10 10 10 9 8 Ballistic Cannon 5 | . . . 1 9 6 5 9 8 3 5 4 5 4 2 Naked Turns . | . . . . . . . . . . . . . . . Heaviest Build 100 | 12 47 56 63 79 80 77 85 90 93 93 89 93 98 100 Greatest Support 125 | 20 20 26 26 78 76 92 92 90 117 117 117 125 125 125 Greatest Overweight (x) 5 | . 4 2 5 3 1 . 1 . . . . . . 2 Average Overweight (x) . | . 1 2 2 . . . . . . . . . . . Largest Inventory Capacity 20 | . 20 20 20 20 20 20 20 20 20 20 20 20 20 20 Average Capacity 19 | . 15 20 20 20 20 20 20 20 20 20 20 20 20 20 Most Carried 20 | . 10 16 20 20 20 19 20 20 20 20 20 20 20 20 Average Carried 18 | . 8 11 18 19 19 18 17 19 19 19 20 19 19 18 Final Capacity 20 | 8 20 20 20 20 20 20 20 20 20 20 20 20 20 20 Final Carried 20 | 6 10 16 20 20 20 18 20 20 20 20 20 20 20 12 Class Distribution -------------------- 30% | Gunner 18% | Scavenger-Gunner 18% | Mutant 16% | Tank 12% | Scavenger-Skirmisher Dominant Class ---------------- Mutant | -10/Materials Mutant | -9/Materials Tank | -8/Materials Tank | -7/Factory Gunner | -6/Factory Gunner | -5/Factory Gunner | -5/Waste Gunner | -5/Factory Scavenger-Skirmisher | -4/Factory Scavenger-Gunner | -4/Upper Caves Scavenger-Gunner | -4/Upper Caves Scavenger-Gunner | -4/Warlord Scavenger-Skirmisher | -3/Proximity Caves Scavenger-Skirmisher | -3/Research Resources | -11 -10 -9 -8 -7 -6 -5 -5 -5 -4 -4 -4 -4 -3 -3 ----------- Run | Jun Mat Mat Mat Fac Fac Fac Was Fac Fac Upp Upp War Pro Res Matter Collected 8434 | 178 105 441 694 976 1756 78 769 696 375 574 185 346 1067 194 Remotely . | . . . . . . . . . . . . . . . Salvage Created 8419 | . 200 504 713 735 1545 78 977 1011 430 534 123 158 1043 368 Parts 348 | . 14 35 51 22 72 4 1 41 11 19 5 3 41 29 Haulers Intercepted 4 | . 1 2 1 . . . . . . . . . . . Recyclers Shooed 3 | . . . . . 1 . . 1 . . . . . 1 Parts Field Recycled . | . . . . . . . . . . . . . . . Retrieved Matter . | . . . . . . . . . . . . . . . Parts Self-Destructed 56 | . . . . . . . . . . 12 6 . 38 . Prevented 4 | . . . . . . . . . . 2 . . 2 . Kills | -11 -10 -9 -8 -7 -6 -5 -5 -5 -4 -4 -4 -4 -3 -3 ------- Run | Jun Mat Mat Mat Fac Fac Fac Was Fac Fac Upp Upp War Pro Res Combat Hostiles Destroyed 156 | . 6 13 17 16 32 3 5 14 5 9 5 5 18 8 Melee 1 | . . . . . . . . . . . . 1 . . Guns 87 | . 6 13 10 8 14 3 1 7 2 6 2 3 8 4 Cannons 53 | . . . 1 8 12 . 4 7 3 3 . 1 10 4 AOE 15 | . . . 6 . 6 . . . . . 3 . . . Classes Destroyed 22 | . 4 2 3 3 2 . 1 3 . 1 . 1 2 . Worker 8 | . 1 . 2 . 4 . . 1 . . . . . . Builder 5 | . . . 1 . 3 . . 1 . . . . . . Tunneler 1 | . . 1 . . . . . . . . . . . . Hauler 4 | . 1 2 1 . . . . . . . . . . . Recycler 6 | . . . . 1 2 . . 2 1 . . . . . Mechanic 1 | . . . . . 1 . . . . . . . . . Operator 3 | . . . . 1 2 . . . . . . . . . Drone 1 | . . . . . . . . . . . . . 1 . Watcher 7 | . . . 1 . 2 . . 3 . . . . . 1 Swarmer 36 | . 5 6 6 . 6 3 . . . . 3 . 3 4 Saboteur 2 | . . . . . . . . 1 . . . 1 . . Grunt 51 | . 1 4 5 14 13 . . 2 3 . . 2 7 . Brawler 4 | . . . . . . . . 1 . . . . 3 . Duelist 6 | . . . 1 . 2 . . . 1 . . . 2 . Protector 1 | . . . . . . . . . . . . . 1 . Sentry 19 | . . 3 5 . 4 . . 2 1 1 1 . 2 . Hunter 4 | . . . . . 1 . . 2 . . . . . 1 Programmer 20 | . . . . 2 6 . . 5 . 2 1 1 . 3 Behemoth 1 | . . . . . . . . 1 . . . . . . Compactor 5 | . . . . . . . 5 . . . . . . . Striker 1 | . . . . . . . . . . . . 1 . . Thug 5 | . . . . . . . . . . 5 . . . . Mutant 1 | . . . . . . . . . . 1 . . . . Best Kill Streak 8 | . 3 4 7 4 8 3 1 5 3 4 3 4 5 4 Combat Bots Only 5 | . 3 4 4 4 5 3 1 3 3 4 3 4 5 4 Max Kills in Single Turn 3 | . 2 2 3 1 3 1 1 2 1 2 1 1 2 2 Gunslinging . | . . . . . . . . . . . . . . . Exploded 3 | . . . 3 . 2 . . . . . 1 . . . Melee 1 | . . . . . . . . . . . . 1 . . Uniques/NPCs Destroyed . | . . . . . . . . . . . . . . . Combat | -11 -10 -9 -8 -7 -6 -5 -5 -5 -4 -4 -4 -4 -3 -3 -------- Run | Jun Mat Mat Mat Fac Fac Fac Was Fac Fac Upp Upp War Pro Res Damage Taken 10818 | . 203 364 731 1029 2041 97 103 1279 356 352 241 . 1585 2437 Core 1225 | . 33 45 49 165 315 . . 98 21 . 79 . 115 305 Absorbed by Shields 423 | . . . . . . . . . . . . . 423 . Redirected to Shielding 94 | . . 5 4 70 9 . . . . . . . 6 . Regen/Repaired (Parts) 821 | . . . . . 343 . 64 147 . . . 267 . . Core Remaining (%) 84 | 100 86 88 91 76 62 . . 90 . . . . 81 . Volleys Fired 458 | . 30 33 40 58 73 7 22 38 12 26 10 16 68 25 Largest 4 | . 2 2 3 3 3 3 3 3 3 3 3 3 3 4 Hottest 213 | . 60 43 87 137 137 102 138 138 123 125 125 125 135 213 Shots Fired 1224 | . 60 65 109 170 198 17 64 113 36 72 22 48 184 66 Gun 837 | . 60 65 98 111 109 14 32 65 24 46 12 32 124 45 Cannon 371 | . . . 7 59 83 3 32 48 12 26 6 16 60 19 Launcher 16 | . . . 4 . 6 . . . . . 4 . . 2 Special . | . . . . . . . . . . . . . . . Kinetic 1174 | . 56 65 105 170 192 17 64 113 36 72 18 48 175 43 Thermal . | . . . . . . . . . . . . . . . Explosive 16 | . . . 4 . 6 . . . . . 4 . . 2 Electromagnetic 16 | . 4 . . . . . . . . . . . . 12 Entropic 18 | . . . . . . . . . . . . . 9 9 Robot Hit Streak 27 | . 7 18 8 22 21 6 27 20 18 12 4 6 14 7 Robot Miss Streak 5 | . 4 3 5 3 3 2 2 2 2 2 3 2 3 2 Penetration Max 2 | . . . . . 1 . . 1 1 1 . 2 1 1 Secondary Targets 3 | . 1 . . . . . . . . . . . 1 1 Max Gunslinging Chain 1 | . 1 . . . . . . . . . . . 1 1 Shots Hit Robots 839 | . 38 50 70 118 152 10 55 79 26 45 12 30 118 36 Core Hits 373 | . 13 27 40 38 74 3 15 36 16 22 9 13 43 24 Critical Kills 8 | . . . . . 3 . . 2 1 . 1 . 1 . Critical Parts Destroyed 10 | . . 1 . . 5 . . . 1 . . . 2 1 Critical Strikes 34 | . . 1 . 2 14 . . 5 2 1 1 1 6 1 Destroy 18 | . . 1 . . 8 . . 3 2 . 1 . 3 . Blast 14 | . . . . 2 6 . . 2 . 1 . 1 2 . Detonate 2 | . . . . . . . . . . . . . 1 1 Melee Attacks 26 | . . . . 8 9 . . 3 3 . . . . 3 Impact 9 | . . . . 8 1 . . . . . . . . . Slashing 17 | . . . . . 8 . . 3 3 . . . . 3 Piercing . | . . . . . . . . . . . . . . . Sneak Attacks 1 | . . . . 1 . . . . . . . . . . Combat Hostiles . | . . . . . . . . . . . . . . . Follow-up Attacks . | . . . . . . . . . . . . . . . Damage Inflicted 25378 | . 418 580 1773 2394 5754 225 1717 2617 1015 1742 598 1127 3634 1784 Guns 13970 | . 418 580 999 1337 2340 225 760 1418 499 1131 189 731 2418 925 Cannons 8160 | . . . 107 930 2051 . 957 1181 274 611 101 396 1126 426 Explosions 3084 | . . . 667 . 1357 . . . 242 . 308 . 90 420 Melee 87 | . . . . 87 . . . . . . . . . . Ramming 77 | . . . . 40 6 . . 18 . . . . . 13 Kinetic 21310 | . 395 580 1106 2267 4391 225 1717 2599 773 1742 290 1127 3266 832 Thermal 857 | . . . . . 207 . . . 242 . . . 90 318 Explosive 2227 | . . . 667 . 1150 . . . . . 308 . . 102 Electromagnetic 253 | . 23 . . . . . . . . . . . . 230 Impact 87 | . . . . 87 . . . . . . . . . . Slashing . | . . . . . . . . . . . . . . . Piercing . | . . . . . . . . . . . . . . . Entropic 567 | . . . . . . . . . . . . . 278 289 Highest Corruption 5 | . . . . 2 2 . . 2 . 1 2 2 4 5 Average Corruption 1 | . . . . 1 1 . . 1 . 1 1 2 3 3 Corruption Purged 2 | . . . . . 2 . . . . . . . . . Corruption Blocked 26 | . . . . . . . . . . . . 26 . . Effects 94 | . . . . 13 36 . . 11 . 2 9 3 16 4 Message Errors 28 | . . . . 6 11 . . 3 . . 2 2 3 1 Matter Fused 13 | . . . . 1 4 . . 2 . 1 2 . 3 . Heat Flow Errors 8 | . . . . 2 . . . 2 . 1 2 . 1 . Energy Discharges 13 | . . . . 2 7 . . 1 . . 2 1 . . Parts Rejected 2 | . . . . 1 1 . . . . . . . . . Parts Fused 1 | . . . . 1 . . . . . . . . . . Data Loss (minor) 12 | . . . . . 4 . . 2 . . . . 6 . Data Loss (major) 6 | . . . . . 4 . . 1 . . 1 . . . Misfires 5 | . . . . . 4 . . . . . . . . 1 Alerts 1 | . . . . . . . . . . . . . 1 . Weapon Failures 5 | . . . . . 1 . . . . . . . 2 2 Overload Shots . | . . . . . . . . . . . . . . . Overflow Damage 549 | . . . 68 81 212 . . 44 7 2 21 25 36 53 Projectiles 284 | . . . . 24 127 . . 44 . 2 . 25 36 26 Explosions 208 | . . . 68 . 85 . . . 7 . 21 . . 27 Melee 57 | . . . . 57 . . . . . . . . . . Knockbacks 55 | . . . . 14 12 . . 9 1 6 1 2 5 5 Impact . | . . . . . . . . . . . . . . . Kinetic 52 | . . . . 12 12 . . 8 1 6 1 2 5 5 Secondary 3 | . . . . 2 . . . 1 . . . . . . Self-Inflicted Damage 432 | . . . 18 24 115 . . . 162 . 36 . . 77 Shots 9 | . . . 1 . 3 . . . 2 . 1 . . 2 Rammed . | . . . . . . . . . . . . . . . Targets Rammed 10 | . . . . 3 3 . . 3 . . . . . 1 Kicked 10 | . . . . 3 3 . . 3 . . . . . 1 Crushed . | . . . . . . . . . . . . . . . Highest Temperature 459 | . 6 14 234 459 328 36 156 370 123 177 176 20 352 142 Average Temperature 76 | . 6 5 58 84 71 19 58 113 52 49 57 10 111 34 Received Heat Transfer 2030 | . 24 111 324 432 576 . . 228 48 54 . . 212 21 Effects 9 | . . . 1 3 1 . . . . . . . 4 . Energy Bleed 5 | . . . 1 2 1 . . . . . . . 1 . Interference 3 | . . . . . . . . . . . . . 3 . Damage (minor) 1 | . . . . 1 . . . . . . . . . . Siege Activations . | . . . . . . . . . . . . . . . Robots Corrupted . | . . . . . . . . . . . . . . . Combat Hostiles . | . . . . . . . . . . . . . . . Parts Fried 3 | . . . . 1 . . . . . . . . . 2 Impact Corruptions 2 | . . . . 2 . . . . . . . . . . Robots Melted . | . . . . . . . . . . . . . . . Combat Hostiles . | . . . . . . . . . . . . . . . Parts Melted 1 | . . . . . . . . 1 . . . . . . Heat Transferred 550 | . . . . . 100 . . . 200 . . . 50 200 Parts Sabotaged . | . . . . . . . . . . . . . . . Parts Stolen . | . . . . . . . . . . . . . . . Parts Stripped . | . . . . . . . . . . . . . . . Power Chain Reactions . | . . . . . . . . . . . . . . . Missiles Intercepted . | . . . . . . . . . . . . . . . Alert | -11 -10 -9 -8 -7 -6 -5 -5 -5 -4 -4 -4 -4 -3 -3 ------- Run | Jun Mat Mat Mat Fac Fac Fac Was Fac Fac Upp Upp War Pro Res Peak Influence 882 | . 183 265 560 274 874 523 207 882 724 . . . . 354 Initial 427 | . . . 75 193 . 427 183 4 421 . . . . 309 Average 306 | . 84 93 313 157 333 483 165 588 525 . . . . 202 Maximum Alert Level 3 | . . 1 2 1 3 2 1 3 3 . . . . 1 Low Security (%) 45 | . 100 88 27 60 38 . 80 20 . . . . . 41 Level 1 23 | . . 11 32 39 27 . 19 9 . . . . . 58 Level 2 14 | . . . 39 . 17 100 . 5 89 . . . . . Level 3 15 | . . . . . 16 . . 64 10 . . . . . Level 4 . | . . . . . . . . . . . . . . . Level 5 . | . . . . . . . . . . . . . . . High Security . | . . . . . . . . . . . . . . . Max Security . | . . . . . . . . . . . . . . . Squads Dispatched 50 | . 1 3 1 12 13 1 . 12 2 . . . 1 4 Investigation 6 | . . 1 . 1 2 . . 1 . . . . . 1 Extermination 16 | . . . . 3 7 1 . 4 . . . . . 1 Reinforcement 16 | . 1 2 1 5 2 . . 4 . . . . . 1 Assault 7 | . . . . . 2 . . 2 2 . . . 1 . Garrison 5 | . . . . 3 . . . 1 . . . . . 1 Intercept . | . . . . . . . . . . . . . . . Searches Triggered . | . . . . . . . . . . . . . . . Construction Impeded 4 | . . . . . 1 . . 2 . . . . . 1 Haulers Reinforced 1 | . . . . 1 . . . . . . . . . . Active Scanning Responses . | . . . . . . . . . . . . . . . Cargo Convoy Interrupts . | . . . . . . . . . . . . . . . Stealth | -11 -10 -9 -8 -7 -6 -5 -5 -5 -4 -4 -4 -4 -3 -3 --------- Run | Jun Mat Mat Mat Fac Fac Fac Was Fac Fac Upp Upp War Pro Res Distress Signals 15 | . 4 1 3 . 3 1 . . . . . 2 . 1 Communications Jammed 54 | . . . . . . . . . . . . . 54 . Distress Signals 54 | . . . . . . . . . . . . . 54 . Times Spotted 297 | . 14 22 26 36 55 5 6 36 12 9 5 29 24 18 Peak Tracking Total 12 | . 5 4 5 4 6 4 1 8 4 4 4 12 8 6 Tactical Retreats 21 | . . 4 6 2 2 . . 2 1 . . 1 3 . Traps | -11 -10 -9 -8 -7 -6 -5 -5 -5 -4 -4 -4 -4 -3 -3 ------- Run | Jun Mat Mat Mat Fac Fac Fac Was Fac Fac Upp Upp War Pro Res Traps Triggered 10 | . 2 2 . 2 1 1 . 2 . . . . . . Indirectly . | . . . . . . . . . . . . . . . Trap Hack Attempts . | . . . . . . . . . . . . . . . Triggered . | . . . . . . . . . . . . . . . Disarmed . | . . . . . . . . . . . . . . . Reprogrammed . | . . . . . . . . . . . . . . . Reused . | . . . . . . . . . . . . . . . Traps Extracted . | . . . . . . . . . . . . . . . Installed . | . . . . . . . . . . . . . . . Triggered 26 | . . . . . . . . . . . . 24 2 . Machines | -11 -10 -9 -8 -7 -6 -5 -5 -5 -4 -4 -4 -4 -3 -3 ---------- Run | Jun Mat Mat Mat Fac Fac Fac Was Fac Fac Upp Upp War Pro Res Machines Disabled 36 | . . . 2 1 16 . . 9 4 . . . . 4 Max in Single Turn 4 | . . . 1 1 4 . . 1 3 . . . . 2 Garrison Access 2 | . . . 1 . . . . 1 . . . . . . Machines Repaired . | . . . . . . . . . . . . . . . Machines Sabotaged . | . . . . . . . . . . . . . . . Overloaded Fab Kills . | . . . . . . . . . . . . . . . Hacking | -11 -10 -9 -8 -7 -6 -5 -5 -5 -4 -4 -4 -4 -3 -3 --------- Run | Jun Mat Mat Mat Fac Fac Fac Was Fac Fac Upp Upp War Pro Res Machines Accessed 45 | . 1 1 4 6 16 1 . 8 1 . . 3 . 4 Terminals 29 | . 1 1 3 3 11 1 . 4 1 . . . . 4 Fabricators 5 | . . . . 2 2 . . 1 . . . . . . Repair Stations 5 | . . . . . 3 . . 2 . . . . . . Recycling Units . | . . . . . . . . . . . . . . . Scanalyzers . | . . . . . . . . . . . . . . . Garrison Access 3 | . . . 1 1 . . . 1 . . . . . . Total Hacks 130 | . 5 3 10 14 39 4 . 26 4 . . 7 . 18 Successful 56 | . 3 2 5 3 14 1 . 11 . . . 7 . 10 Failed 74 | . 2 1 5 11 25 3 . 15 4 . . . . 8 Catastrophic 18 | . . . . 3 9 1 . 3 . . . . . 2 Database Lockouts . | . . . . . . . . . . . . . . . Manual 53 | . 5 . 3 6 18 3 . 11 . . . . . 7 Terminals 89 | . 5 3 7 8 26 4 . 14 4 . . . . 18 Fabricators 10 | . . . . 3 4 . . 3 . . . . . . Repair Stations 16 | . . . . . 9 . . 7 . . . . . . Recycling Units . | . . . . . . . . . . . . . . . Scanalyzers . | . . . . . . . . . . . . . . . Garrison Access 8 | . . . 3 3 . . . 2 . . . . . . Terminal Hacks 36 | . 3 2 4 2 5 1 . 3 . . . 7 . 9 Record 7 | . . . . . . . . . . . . 6 . 1 Robot Analysis 2 | . 2 . . . . . . . . . . . . . Prototype ID Bank 6 | . 1 . 2 . 1 . . 1 . . . . . 1 Open Door 1 | . . . . . . . . . . . . 1 . . Branch Access Points 2 | . . . . . 1 . . . . . . . . 1 Terminal Index 1 | . . . . . 1 . . . . . . . . . Alert Level 7 | . . 1 . 1 1 1 . 1 . . . . . 2 Unreport Threat 3 | . . 1 . 1 . . . . . . . . . 1 Locate Traps 5 | . . . 1 . 1 . . 1 . . . . . 2 Zone Layout 2 | . . . 1 . . . . . . . . . . 1 Fabricator Hacks 3 | . . . . 1 . . . 2 . . . . . . Network Status 2 | . . . . 1 . . . 1 . . . . . . Build 1 | . . . . . . . . 1 . . . . . . Repair Station Hacks 10 | . . . . . 8 . . 2 . . . . . . Scan Component 6 | . . . . . 4 . . 2 . . . . . . Repair 4 | . . . . . 4 . . . . . . . . . Recycling Unit Hacks . | . . . . . . . . . . . . . . . Scanalyzer . | . . . . . . . . . . . . . . . Garrison Access Hacks 2 | . . . 1 . . . . 1 . . . . . . Seal Access 2 | . . . 1 . . . . 1 . . . . . . Unauthorized Hacks 5 | . . . . . 1 . . 3 . . . . . 1 Terminals 4 | . . . . . 1 . . 2 . . . . . 1 Assimilate 1 | . . . . . . . . 1 . . . . . . Botnet 3 | . . . . . 1 . . 1 . . . . . 1 Fabricators 1 | . . . . . . . . 1 . . . . . . Prioritize 1 | . . . . . . . . 1 . . . . . . Repair Stations . | . . . . . . . . . . . . . . . Recycling Units . | . . . . . . . . . . . . . . . Scanalyzers . | . . . . . . . . . . . . . . . Garrison Access . | . . . . . . . . . . . . . . . Data Cores Recovered 2 | . . . . 1 1 . . . . . . . . . Used 1 | . . . . 1 . . . . . . . . . . Hacking Detections 39 | . 1 1 3 6 14 1 . 8 1 . . . . 4 Full Trace Events 5 | . . . . 1 2 . . 1 . . . . . 1 Feedback Events . | . . . . . . . . . . . . . . . Feedback Blocked . | . . . . . . . . . . . . . . . Robot Schematics Acquired . | . . . . . . . . . . . . . . . Robots Built . | . . . . . . . . . . . . . . . Authchips . | . . . . . . . . . . . . . . . Time . | . . . . . . . . . . . . . . . Total Robot Build Rating . | . . . . . . . . . . . . . . . Part Schematics Acquired . | . . . . . . . . . . . . . . . Parts Built 2 | . . . . . . . . 2 . . . . . . Authchips . | . . . . . . . . . . . . . . . Time 106 | . . . . . . . . 106 . . . . . . Total Part Build Rating 12 | . . . . . . . . 12 . . . . . . Parts Repaired 4 | . . . . . 4 . . . . . . . . . Time 202 | . . . . . 202 . . . . . . . . . Parts Recycled . | . . . . . . . . . . . . . . . Recycled Matter . | . . . . . . . . . . . . . . . Retrieved Matter . | . . . . . . . . . . . . . . . Retrieved Components . | . . . . . . . . . . . . . . . Parts Scanalyzed . | . . . . . . . . . . . . . . . Part Schematics Acquired . | . . . . . . . . . . . . . . . Parts Damaged . | . . . . . . . . . . . . . . . Bothacking | -11 -10 -9 -8 -7 -6 -5 -5 -5 -4 -4 -4 -4 -3 -3 ------------ Run | Jun Mat Mat Mat Fac Fac Fac Was Fac Fac Upp Upp War Pro Res Used RIF Installer . | . . . . . . . . . . . . . . . Robots Hacked . | . . . . . . . . . . . . . . . Non-combat . | . . . . . . . . . . . . . . . Combat . | . . . . . . . . . . . . . . . Robot Hacks Applied . | . . . . . . . . . . . . . . . Relay Couplers Released . | . . . . . . . . . . . . . . . Fabnet Peak Effective % . | . . . . . . . . . . . . . . . Robots Rewired 7 | . . . . . . . . . . . . 5 2 . Allies Hacked 2 | . . . . . . . . 2 . . . . . . Hacks Repelled . | . . . . . . . . . . . . . . . Allies | -11 -10 -9 -8 -7 -6 -5 -5 -5 -4 -4 -4 -4 -3 -3 -------- Run | Jun Mat Mat Mat Fac Fac Fac Was Fac Fac Upp Upp War Pro Res Total Allies 27 | . . . . . . . 19 1 . . . 5 2 . Largest Group 19 | . . . . . . . 19 18 . . . 5 3 . Highest-Rated Group 702 | . . . . . . . 702 669 . . . 256 176 . Highest-Rated Ally 65 | . . . . . . . 50 50 . . . 65 65 . Total Orders . | . . . . . . . . . . . . . . . Ally Attacks 186 | . . . . . . . 64 95 . . . 12 15 . Total Damage 5918 | . . . . . . . 1804 3104 . . . 510 500 . Kills 24 | . . . . . . . 1 20 . . . 3 . . Allies Corrupted 2 | . . . . . . . . 2 . . . . . . Allies Melted . | . . . . . . . . . . . . . . . Intel | -11 -10 -9 -8 -7 -6 -5 -5 -5 -4 -4 -4 -4 -3 -3 ------- Run | Jun Mat Mat Mat Fac Fac Fac Was Fac Fac Upp Upp War Pro Res Robot Analysis Total 2 | . 2 . . . . . . . . . . . . . Derelict Logs Recovered 3 | . . . . . . . . . . 2 1 . . . Drone Launches . | . . . . . . . . . . . . . . . Drone Recoveries . | . . . . . . . . . . . . . . . Exploration | -11 -10 -9 -8 -7 -6 -5 -5 -5 -4 -4 -4 -4 -3 -3 ------------- Run | Jun Mat Mat Mat Fac Fac Fac Was Fac Fac Upp Upp War Pro Res Turns Passed 16698 | . 672 1073 841 2418 3891 250 421 2056 590 1009 534 1221 1041 681 Spaces Moved 9584 | 1 275 422 483 1077 2153 180 244 1392 398 725 384 879 616 355 Core . | . . . . . . . . . . . . . . . Treads 2 | . . . . 2 . . . . . . . . . . Legs 8725 | 1 275 170 . 953 2153 180 244 1392 398 725 384 879 616 355 Wheels 857 | . . 252 483 122 . . . . . . . . . . Hover . | . . . . . . . . . . . . . . . Flight . | . . . . . . . . . . . . . . . Fastest Speed 110 | 120 120 120 110 110 122 122 122 120 120 120 120 118 118 118 Average Speed 132 | 120 197 176 122 149 136 122 122 120 120 120 120 119 118 126 Slowest Speed 400 | 120 400 260 155 240 192 122 193 122 120 120 120 120 118 260 Overloaded Moves . | . . . . . . . . . . . . . . . Propulsion Burnouts . | . . . . . . . . . . . . . . . Robots Hopped . | . . . . . . . . . . . . . . . Cave-ins Triggered . | . . . . . . . . . . . . . . . Exploration Rate (%) 48 | 2 52 42 49 33 69 8 93 48 9 88 59 92 78 12 Regions Visited 14 Branch Regions 4 Pre-discovered Areas 1 | . . . . . . . . . . . 1 . . . Known Exits Taken 6 | . . . . . . . . 1 1 1 1 1 1 . Unknown Exits Taken 6 | 1 1 1 1 1 1 . . . . . . . . . Scrap Searched 8 | . . . . . . . . . . 2 4 . 2 . Spaces Dug 45 | . . . 10 6 9 . . 5 3 1 . . 8 3 Terrain Destroyed 470 | . . . 20 7 154 2 5 17 54 17 68 12 67 47 Melee 24 | . . . . 6 9 . . 3 3 . . . . 3 Projectile 168 | . . . 1 1 28 2 5 14 6 17 10 12 59 13 AOE 278 | . . . 19 . 117 . . . 45 . 58 . 8 31 Terrain Rammed 1 | . . . . 1 . . . . . . . . . . Walls Destroyed . | . . . . . . . . . . . . . . . Machines Disabled . | . . . . . . . . . . . . . . . Actions | -11 -10 -9 -8 -7 -6 -5 -5 -5 -4 -4 -4 -4 -3 -3 --------- Run | Jun Mat Mat Mat Fac Fac Fac Was Fac Fac Upp Upp War Pro Res Total 12715 | . 349 689 654 1755 2946 198 320 1689 489 818 444 1026 809 529 Wait 2091 | . 29 203 91 516 612 9 39 209 40 60 49 32 75 127 Move 9571 | . 274 421 482 1076 2152 180 243 1391 397 724 383 878 615 355 Hop . | . . . . . . . . . . . . . . . Pick Up 87 | . 5 12 8 23 13 . 4 5 10 . . 5 . 2 Fast Attach 54 | . 5 2 3 9 16 . 2 6 . . . 3 7 1 Attach 42 | . . 3 3 5 8 2 4 . 3 2 . . 2 10 Detach 11 | . . . . 2 6 . 1 1 . . . . 1 . Swap 130 | . 3 7 14 22 26 . 4 18 12 5 2 6 6 5 Drop 127 | . 3 8 13 32 28 . 1 15 12 1 . 13 1 . Fire 458 | . 30 33 40 58 73 7 22 38 12 26 10 16 68 25 Melee 26 | . . . . 8 9 . . 3 3 . . . . 3 Ram 1 | . . . . 1 . . . . . . . . . . Kick 10 | . . . . 3 3 . . 3 . . . . . 1 Crush . | . . . . . . . . . . . . . . . Escape Stasis . | . . . . . . . . . . . . . . . Rewire 107 | . . . . . . . . . . . . 73 34 . Trap . | . . . . . . . . . . . . . . . Miscellaneous . | . . . . . . . . . . . . . . . Route ------- -11/Junkyard -10/Materials (discovered 2 exits: *Mat x2) -9/Materials -8/Materials -7/Factory -6/Factory (discovered 5 exits: *Fac x3 / Low x2) -5/Factory -5/Waste -5/Factory (discovered 4 exits: *Fac x2 / [*Upp x2]) -4/Factory -4/Upper Caves -4/Upper Caves -4/Warlord -3/Proximity Caves -3/Research (discovered 5 exits: Res x2 / Arm / Tes x2) History --------- Turn | Location | Event 1 | -11/Junkyard | Discovered new exit (range 0) 1 | -11/Junkyard | Entered Materials 256 | -10/Materials | Discovered new exit (range 7) 324 | -10/Materials | Build established: Mutant 450 | -10/Materials | Discovered new exit (range 15) 673 | -10/Materials | Entered another Materials area 673 | -9/Materials | Evolved 2 slots: Utility x2 1690 | -9/Materials | Discovered new exit (range 14) 1746 | -9/Materials | Entered another Materials area 1746 | -8/Materials | Evolved 2 slots: Propulsion x1, Weapon x1 2050 | -8/Materials | Build established: Tank 2332 | -8/Materials | Discovered new exit (range 10) 2587 | -8/Materials | Entered Factory 2587 | -7/Factory | Evolved 2 slots: Propulsion x1, Utility x1 3790 | -7/Factory | Garrison activated, responded to threat 4918 | -7/Factory | Discovered new exit (range 15) 5005 | -7/Factory | Entered another Factory area 5005 | -6/Factory | Evolved 2 slots: Utility x2 5308 | -6/Factory | Build established: Mutant 5623 | -6/Factory | Spotted B-75 Beast 5865 | -6/Factory | Build established: Gunner 5998 | -6/Factory | Discovered new exit (range 7) 6222 | -6/Factory | Repaired Imp. Carbon-fiber Leg 6697 | -6/Factory | Discovered new exit (range 19) 7676 | -6/Factory | Repaired Flexi-carbon Leg 8155 | -6/Factory | First assault squad dispatched 8201 | -6/Factory | Identified exit to Lower Caves 8400 | -6/Factory | Repaired Coil Gun 8482 | -6/Factory | Repaired Imp. Heavy Machine Gun 8857 | -6/Factory | Discovered new exit (range 14) 8896 | -6/Factory | Entered another Factory area 8896 | -5/Factory | Evolved 2 slots: Propulsion x1, Utility x1 9146 | -5/Factory | Sucked down chute 9146 | -5/Factory | Entered Waste 9161 | -5/Waste | Spotted C-40 Crusher 9179 | -5/Waste | Destroyed C-40 Crusher 9193 | -5/Waste | Spotted C-40 Crusher 9229 | -5/Waste | Crushed by Compactor (1 part destroyed, 1 dropped) 9232 | -5/Waste | Crushed by Compactor (1 part destroyed, 1 dropped) 9233 | -5/Waste | Destroyed C-40 Crusher 9248 | -5/Waste | Spotted C-40 Crusher 9260 | -5/Waste | Destroyed C-40 Crusher 9263 | -5/Waste | Lost 3 parts (1n1u1w) 9293 | -5/Waste | Warlord forces began an assault 9404 | -5/Waste | Spotted C-40 Crusher 9414 | -5/Waste | Allies destroyed C-40 Crusher 9437 | -5/Waste | Spotted C-40 Crusher 9441 | -5/Waste | Destroyed C-40 Crusher 9459 | -5/Waste | Spotted C-40 Crusher 9466 | -5/Waste | Destroyed C-40 Crusher 9489 | -5/Waste | Discovered new exit (range 21) 9567 | -5/Waste | Entered Factory 9567 | -5/Factory | Accompanied by 18 allies 9572 | -5/Factory | Spotted B-75 Beast 9574 | -5/Factory | Destroyed B-75 Beast 9612 | -5/Factory | Discovered new exit (range 15) 9837 | -5/Factory | Discovered new exit (range 22) 9949 | -5/Factory | Fabricated Imp. Dynamic Insulation System (x2) 10023 | -5/Factory | Discovered new exit (range 20) 10176 | -5/Factory | Garrison activated, responded to threat 11367 | -5/Factory | First assault squad dispatched 11415 | -5/Factory | Build established: Scavenger-Gunner 11604 | -5/Factory | Discovered new exit (range 12) 11622 | -5/Factory | Identified exit to Factory 11623 | -5/Factory | Entered another Factory area 11623 | -4/Factory | Evolved 2 slots: Propulsion x1, Utility x1 11873 | -4/Factory | First assault squad dispatched 12025 | -4/Factory | Discovered new exit (range 6) 12030 | -4/Factory | Identified exit to Upper Caves 12213 | -4/Factory | Entered Upper Caves 12217 | -4/Upper Caves | Attracted the attention of an 0b10 checkpoint 12252 | -4/Upper Caves | Build established: Scavenger-Skirmisher 12535 | -4/Upper Caves | Attacked by a faux Warlord 12715 | -4/Upper Caves | Discovered new exit (range 9) 12726 | -4/Upper Caves | Identified exit to Upper Caves 12782 | -4/Upper Caves | Learned 8 Research zone layouts 12800 | -4/Upper Caves | Build established: Scavenger-Gunner 12974 | -4/Upper Caves | Encountered a Warlord checkpoint 13222 | -4/Upper Caves | Entered another Upper Caves area 13749 | -4/Upper Caves | Discovered new exit (range 5) 13755 | -4/Upper Caves | Identified exit to Warlord 13756 | -4/Upper Caves | Entered Warlord 13784 | -4/Warlord | Discovered new exit (range 16) 13828 | -4/Warlord | System corruption cleaned by Quarantine Array 13910 | -4/Warlord | Found Prototype Special Weapon 13913 | -4/Warlord | Found Prototype Special Weapon 13916 | -4/Warlord | Found Prototype Special Weapon 13973 | -4/Warlord | Visited the Vortex Lab 13976 | -4/Warlord | Warlord's base attacked by MAIN.C 13991 | -4/Warlord | Found Prototype Energy Gun 13991 | -4/Warlord | Identified Vortex Rail 13994 | -4/Warlord | Found Vortex Rail 14326 | -4/Warlord | Warlord forces counterattacked 14384 | -4/Warlord | Met Warlord 14423 | -4/Warlord | Found Prototype Device 14423 | -4/Warlord | Identified Minesniffer Drone Bay 14651 | -4/Warlord | Warlord base infiltrated, sounded retreat 14806 | -4/Warlord | P-80 Master assimilated allied Rainmaker 7a 14807 | -4/Warlord | P-70 Sage assimilated allied Disruptor 7a 14834 | -4/Warlord | Spotted Striker 14874 | -4/Warlord | Destroyed Striker 14890 | -4/Warlord | Spotted Executioner 14972 | -4/Warlord | Identified exit to Proximity Caves 14977 | -4/Warlord | Entered Proximity Caves 14977 | -3/Proximity Caves | Accompanied by 1 ally 14979 | -3/Proximity Caves | Spotter reported a threat 14988 | -3/Proximity Caves | Spotter reported a threat 15149 | -3/Proximity Caves | Attracted the attention of an 0b10 outpost 15315 | -3/Proximity Caves | Lost 3 parts (2u1w) 15498 | -3/Proximity Caves | Build established: Scavenger-Skirmisher 15579 | -3/Proximity Caves | Spotted B-86 Titan 15649 | -3/Proximity Caves | Attracted the attention of an 0b10 checkpoint 16014 | -3/Proximity Caves | Discovered new exit (range 3) 16016 | -3/Proximity Caves | Identified exit to Research 16018 | -3/Proximity Caves | Entered Research 16018 | -3/Research | Evolved 2 slots: Utility x1, Weapon x1 16019 | -3/Research | Identified exit to Armory 16020 | -3/Research | Identified exit to Research 16304 | -3/Research | Spotted B-86 Titan 16314 | -3/Research | Identified exit to Testing 16449 | -3/Research | Lost 3 parts (3n) 16561 | -3/Research | Lost 8 parts (3n2u3w) 16669 | -3/Research | Garrison activated, responded to threat 16699 | -3/Research | Self-destructed Last Messages --------------- 16685_ Vortex Rail destroyed. 16687_ Penetrated by Slug. 16687_ Slug penetrates Wall. 16687_ Penetrated by Slug. 16687_ Slug penetrates Wall. 16690_ Slug penetrates U-05 Engineer. 16690_ Penetrated by Slug. 16690_ Adv. Heat Sink destroyed. 16690_ Slug penetrates Wall. 16691_ U-05 Engineer builds a Wall. 16691_ Mass Driver destroyed. 16693_ Destroyed Imp. Antigrav System. 16693_ Destroyed Gamma Rifle. 16693_ Slug penetrates Wall. 16695_ ALERT: Construction progress impeded, dispatching reinforcements to local area. 16695_ System corrupted: Hvy. Rocket Launcher failed to launch. 16695_ Imp. Dynamic Insulation System destroyed. 16695_ Slug penetrates Wall. 16697_ Hvy. Rocket Launcher destroyed. Map ----- +----------------------------------------------------+ | ###??????????????# # == #??????????? | | "#??????????????# # == ????????????? | | ##??????????????# # ?????????????? | | #???????????????# # ?????????????? | | #???????????????# + = ?????????????? | | #???????????????# = # ?????????????? | | #???????????????#[%= # #?????????????????? | | #???????????????# = # #?????????????????? | | #???????????????# # #?????????????????? | | #######################"### #?????????????????? | | [= %[ #?????????????????? | | =% #?????????????????? | | #?????????????????? | | !=! #?????????????????? | | ######+#############+### #?????????????????? | | # #??# # #??########???????? | | # #??# # #? """ / #???????? | | # """ #??# # #? """ #???????? | | # """" #??# # # """ #???????? | | # """" #??# # # #???????? | | # """ #??# # ^/ #???????? | | #### #??# # # #???????? | | ## #??# # # #???????? | | ############??########### #? #???????? | | #?????????########### #?#########???????? | | #?????????# @ #?????????????????? | | #?????????# *! #?????????????????? | | #?????????# " [ #?????????????????? | | #?????????# " =h #?????????????????? | | #?????????# u #?????????????????? | | ! #?????????# ###############???? | | #######?????#####+### g #???? | | #??????# # g #???? | | #??????# # g #???? | | ####+######??# """ "" + Y #???? | | # #??# """ """ ## ####;#+### #???? | | # #??# """ """ #? ??? ??? #???? | | # #??# #? ??? #????????? | | # ] ==!#### #? #????????? | | # =!!+ + "" """ #?? #????????? | | # =!!#### " """ #?? ? #????????? | | # #??# " " """ #??## ???????????? | | # #??# #???# ???????????? | | ############## #???# ???????????? | | #??#! ##########+##;##########+###?????????? | | #??# # """??????^??? | | #??#""" # """?????????? | | #??#""" # ?????? | | #??#""" + ?????? | | ???#""" # ###+############# ^???^?? | +----------------------------------------------------+ Best States ------------- Heat Dissipation 74 Coolant Potential 100 Energy Generation 19 Energy Capacity 310 Matter Stores 300 Matter Capacity 550 Sight Range 22 Robot Scan Range 18 Terrain Scan Density 10 ECM Strength 2 Jamming Range 12 EM Shielding 3 Armor Coverage 225 Core Shielding 30 Utility Shielding 66 Weapon Cycling 20 Evasion (%) 55 Targeting Accuracy 24 Core Analysis 6 Recoil Reduction 2 Kinecelleration 30 Offensive Hacking 11 Item Schematics ----------------- None Robot Schematics ------------------ None Fabricated ------------ Imp. Dynamic Insulation System | x2 | -5/Factory | Preloaded Alien Tech Used ----------------- None Achievements -------------- None Challenges ------------ None Game ------ Seed BattleFlightRipper Manual? 0 Play Time 02:14:22 Cumulative 197.3 hours Start 2023.12.07 @ 21:13:28 End 2023.12.08 @ 00:34:03 Sessions 1 Manual Loads 0 Difficulty Rogue Special Mode None Game No. 113 Rogue 113 Adventurer 0 Explorer 0 Win Type - Total 2 Types 2/0/0/0/0/0/0/0/0 Lore% 49 Gallery% 69 Achievement% 55 Wizard Run 0 Options --------- ASCII 0 Keyboard 1 Movement Numpad Keybinds 0 Fullscreen 1 Font 24/Smallcaps Map View 76x50 Tactical HUD 1 Map Filters NONE Filters NONE Steam 1 RUN: fd6406ce-5bfe-4f0e-889a-1510dd020a30